fUSD/lending_fUSD_20251105
["ID","MTS","AMOUNT","RATE_DAILY","PERIOD"]
[393217593,1762333666370,-59.61956548,0.00017068,3]
[393217594,1762333666395,-117.77957677,0.00017148,2]
[393217613,1762333786917,-48.88042323,0.00017148,2]
[393217614,1762333786941,-158.70487889,0.00017405,2]
[393217617,1762333816707,-166.49462567,0.00017405,2]
[393217618,1762333816729,-180.73563783,0.00017452,2]
[393217619,1762333817474,431.34,0.00013699,2]
[393217620,1762333817915,-323.26436217,0.00017452,2]
[393217621,1762333817940,-113.64336563,0.0001746,2]
[393217622,1762333819980,-185.39290357,0.0001746,2]
[393217624,1762333825388,282.0,0.0003013,120]
[393217628,1762333831609,-26.16323531,0.0001746,2]
[393217629,1762333831619,-166.66,0.00017481,2]
[393217630,1762333831629,-277.35679052,0.00017493,2]
[393217631,1762333831639,-300.0,0.00017502,2]
[393217632,1762333831648,-300.0,0.00017502,2]
[393217633,1762333831657,-1200.0,0.00017502,2]
[393217634,1762333831667,-550.0,0.00017503,2]
[393217635,1762333831676,-300.0,0.00017503,2]
[393217636,1762333831685,-403.4952759,0.00017503,2]
[393217637,1762333831694,-500.0,0.00017504,2]
[393217638,1762333831704,-500.0,0.00017504,2]
[393217639,1762333831714,-500.0,0.00017504,2]
[393217640,1762333831723,-500.0,0.00017504,2]
[393217641,1762333831732,-500.0,0.00017504,2]
[393217642,1762333831742,-500.0,0.00017504,2]
[393217643,1762333831751,-500.0,0.00017504,2]
[393217644,1762333831761,-500.0,0.00017504,2]
[393217645,1762333831773,-500.0,0.00017504,2]
[393217646,1762333831783,-500.0,0.00017504,2]
[393217647,1762333831792,-500.0,0.00017504,2]
[393217648,1762333831801,-500.0,0.00017504,2]
[393217649,1762333831812,-500.0,0.00017504,2]
[393217650,1762333831821,-500.0,0.00017504,2]
[393217651,1762333831830,-500.0,0.00017504,2]
[393217652,1762333831839,-192.35313971,0.00017504,2]
[393217653,1762333831853,-307.64686029,0.00017504,2]
[393217654,1762333831866,-155.78779632,0.00017504,2]
[393217655,1762333831881,-344.21220368,0.00017504,2]
[393217657,1762333831891,-197.59510155,0.00017504,2]
[393217659,1762333831901,-500.0,0.00017504,2]
[393217661,1762333831910,-204.21000514,0.00017504,2]
[393217663,1762333831925,-295.78999486,0.00017504,2]
[393217665,1762333831935,-500.0,0.00017504,2]
[393217667,1762333831945,-500.0,0.00017504,2]
[393217669,1762333831954,-500.0,0.00017504,2]
[393217671,1762333831964,-500.0,0.00017504,2]
[393217673,1762333831974,-500.0,0.00017504,2]
[393217676,1762333831983,-500.0,0.00017504,2]
[393217678,1762333831993,-499.99999999,0.00017504,2]
[393217680,1762333832004,-264.41459122,0.00017504,2]
[393217682,1762333832013,-1279.99,0.00017504,2]
[393217684,1762333832023,-150.99,0.00017504,2]
[393217686,1762333832032,-1589.6,0.00017504,2]
[393217688,1762333832041,-999.99,0.00017504,2]
[393217690,1762333832051,-2156.81918284,0.00017504,2]
[393217693,1762333832066,-1486.47249204,0.00017504,2]
[393217699,1762333832109,-6356.69832512,0.00017504,2]
[393217701,1762333832118,-9999.99,0.00017504,2]
[393217703,1762333832128,-299.99,0.00017504,4]
[393217705,1762333832137,-9999.99,0.00017504,2]
[393217707,1762333832146,-150.99,0.00017504,2]
[393217709,1762333832155,-1597.49,0.00017504,2]
[393217711,1762333832165,-9999.99,0.00017504,2]
[393217713,1762333832175,-40926.03,0.00017504,2]
[393217715,1762333832184,-402.57,0.00017504,2]
[393217717,1762333832194,-9999.99,0.00017504,2]
[393217719,1762333832203,-1167.81,0.00017504,2]
[393217721,1762333832213,-9999.99,0.00017504,2]
[393217723,1762333832223,-546.79,0.00017504,2]
[393217725,1762333832233,-279.6991,0.00017505,2]
[393217727,1762333832243,-4067.1465,0.00017505,2]
[393217729,1762333832252,-12323.962,0.00017505,2]
[393217732,1762333832265,-1000.0,0.00017505,2]
[393217734,1762333832274,-2500.0,0.00017505,2]
[393217736,1762333832284,-254.09781581,0.00017505,2]
[393217738,1762333832294,-260.0262218,0.00017505,2]
[393217740,1762333832304,-500.0,0.00017507,2]
[393217742,1762333832314,-325.19950451,0.00017515,2]
[393217744,1762333832323,-221.75791629,0.00017551,2]
[393217746,1762333832333,-325.19950451,0.0001757,2]
[393217748,1762333832343,-500.0,0.00017573,2]
[393217750,1762333832353,-500.86745626,0.00017573,2]
[393217752,1762333832362,-500.0,0.00017573,2]
[393217754,1762333832373,-500.0,0.00017573,2]
[393217757,1762333832383,-500.0,0.00017573,2]
[393217759,1762333832393,-500.0,0.00017573,2]
[393217760,1762333832403,-500.0,0.00017573,2]
[393217763,1762333832413,-501.67217385,0.00017573,2]
[393217765,1762333832422,-500.0,0.00017573,2]
[393217767,1762333832432,-500.0,0.00017573,2]
[393217769,1762333832442,-500.0,0.00017573,2]
[393217771,1762333832454,-500.0,0.00017573,2]
[393217773,1762333832464,-500.0,0.00017573,2]
[393217775,1762333832474,-500.0,0.00017589,2]
[393217777,1762333832484,-500.0,0.00017594,2]
[393217778,1762333832494,-322.6107,0.00017594,2]
[393217779,1762333832503,-151.0,0.00017594,2]
[393217780,1762333832513,-151.0,0.00017594,2]
[393217781,1762333832523,-151.0,0.00017594,2]
[393217782,1762333832533,-151.0,0.00017594,2]
[393217783,1762333832542,-151.0,0.00017594,2]
[393217784,1762333832552,-151.0,0.00017594,2]
[393217785,1762333832562,-151.0,0.00017594,2]
[393217786,1762333832573,-250.0,0.00017594,2]
[393217787,1762333832582,-176.40136331,0.00017594,2]
[393217788,1762333832592,-152.0,0.00017594,2]
[393217789,1762333832601,-168.55909808,0.00017594,2]
[393217790,1762333832610,-151.0,0.00017594,2]
[393217791,1762333832621,-151.0,0.00017594,2]
[393217792,1762333832630,-151.0,0.00017594,2]
[393217793,1762333832640,-151.0,0.00017594,2]
[393217794,1762333832653,-151.0,0.00017594,2]
[393217795,1762333832663,-151.0,0.00017594,2]
[393217796,1762333832672,-151.0,0.00017594,2]
[393217797,1762333832683,-540.80072022,0.00017594,2]
[393217798,1762333832693,-151.0,0.00017594,2]
[393217799,1762333832703,-151.0,0.00017594,2]
[393217800,1762333832712,-151.0,0.00017594,2]
[393217801,1762333832721,-75.95385055,0.00017594,2]
[393217802,1762333832733,-544.04614945,0.00017594,2]
[393217803,1762333832743,-151.0,0.00017594,2]
[393217804,1762333832754,-151.0,0.00017594,2]
[393217805,1762333832763,-151.0,0.00017594,2]
[393217806,1762333832773,-151.0,0.00017594,2]
[393217807,1762333832786,-151.0,0.00017594,2]
[393217808,1762333832795,-151.0,0.00017594,2]
[393217809,1762333832804,-151.0,0.00017594,2]
[393217810,1762333832813,-500.0,0.00017594,2]
[393217811,1762333832824,-151.0,0.00017594,2]
[393217812,1762333832833,-500.0,0.00017594,2]
[393217813,1762333832842,-151.0,0.00017594,2]
[393217814,1762333832856,-180.82586183,0.00017594,2]
[393217815,1762333832865,-500.0,0.00017594,2]
[393217816,1762333832875,-151.0,0.00017594,2]
[393217817,1762333832885,-500.0,0.00017594,2]
[393217818,1762333832896,-307.81342059,0.00017594,2]
[393217819,1762333832906,-151.0,0.00017594,2]
[393217820,1762333832915,-500.0,0.00017594,2]
[393217821,1762333832924,-151.0,0.00017594,2]
[393217822,1762333832935,-500.0,0.00017594,2]
[393217823,1762333832944,-151.0,0.00017594,2]
[393217824,1762333832953,-500.0,0.00017594,2]
[393217825,1762333832963,-151.0,0.00017594,2]
[393217826,1762333832972,-500.0,0.00017594,2]
[393217827,1762333832981,-151.0,0.00017594,2]
[393217828,1762333832991,-500.0,0.00017594,2]
[393217829,1762333833001,-151.0,0.00017594,2]
[393217830,1762333833010,-151.0,0.00017594,2]
[393217831,1762333833020,-500.0,0.00017594,2]
[393217832,1762333833029,-151.0,0.00017594,2]
[393217833,1762333833039,-500.0,0.00017594,2]
[393217834,1762333833048,-151.0,0.00017594,2]
[393217835,1762333833058,-250.0,0.00017594,2]
[393217836,1762333833068,-250.0,0.00017594,2]
[393217837,1762333833077,-250.0,0.00017594,2]
[393217838,1762333833086,-250.0,0.00017594,2]
[393217839,1762333833096,-250.0,0.00017594,2]
[393217840,1762333833105,-250.0,0.00017594,2]
[393217841,1762333833115,-500.0,0.00017594,2]
[393217842,1762333833124,-250.0,0.00017594,2]
[393217843,1762333833134,-151.0,0.00017594,2]
[393217844,1762333833143,-500.0,0.00017594,2]
[393217845,1762333833152,-250.0,0.00017594,2]
[393217846,1762333833162,-200.0,0.00017594,2]
[393217847,1762333833171,-250.0,0.00017594,2]
[393217848,1762333833181,-500.0,0.00017594,2]
[393217849,1762333833192,-250.0,0.00017594,2]
[393217850,1762333833202,-500.0,0.00017594,2]
[393217851,1762333833212,-500.0,0.00017594,2]
[393217852,1762333833222,-120.89842566,0.00017594,2]
[393217865,1762333837709,-129.10157434,0.00017594,2]
[393217867,1762333837719,-500.0,0.00017594,2]
[393217869,1762333837729,-500.0,0.00017594,2]
[393217871,1762333837740,-5.11842566,0.00017594,2]
[393217872,1762333837752,-494.88157434,0.00017594,2]
[393217873,1762333837762,-41.25402566,0.00017594,2]
[393217874,1762333837781,-458.74597434,0.00017594,2]
[393217875,1762333837792,-313.27582199,0.00017594,2]
[393217876,1762333837860,-186.72417801,0.00017594,2]
[393217877,1762333837870,-500.0,0.00017594,2]
[393217878,1762333837880,-500.0,0.00017604,2]
[393217879,1762333837890,-500.0,0.00017604,2]
[393217880,1762333837899,-7342.15801043,0.00017605,2]
[393217886,1762333839716,-509.0,0.00017605,2]
[393217887,1762333839727,-6622.19999994,0.00017605,2]
[393217888,1762333839826,-405526.64198963,0.00017605,2]
[393217889,1762333839835,-1000.0,0.00017605,2]
[393217890,1762333839845,-325.19950451,0.00017625,2]
[393217891,1762333839856,-1000.0,0.00017647,2]
[393217892,1762333839866,-500.0,0.00017671,2]
[393217893,1762333839875,-500.0,0.00017673,2]
[393217894,1762333839884,-554.9128886,0.00017673,2]
[393217895,1762333839893,-621.06284059,0.00017673,2]
[393217896,1762333839903,-500.0,0.00017673,2]
[393217897,1762333839912,-346.48749089,0.00017673,2]
[393217898,1762333839921,-500.0,0.00017673,2]
[393217899,1762333839931,-500.0,0.00017673,2]
[393217900,1762333839940,-500.0,0.00017673,2]
[393217901,1762333839949,-216.03107045,0.00017673,2]
[393217902,1762333839958,-500.0,0.00017673,2]
[393217903,1762333839967,-500.0,0.00017673,2]
[393217904,1762333839977,-500.0,0.00017673,2]
[393217905,1762333839986,-500.0,0.00017673,2]
[393217906,1762333839995,-500.39073057,0.00017673,2]
[393217907,1762333840004,-205.86369281,0.00017673,2]
[393217908,1762333840013,-500.0,0.00017673,2]
[393217909,1762333840023,-500.0,0.00017673,2]
[393217910,1762333840032,-500.0,0.00017673,2]
[393217911,1762333840041,-500.79767075,0.00017673,2]
[393217912,1762333840050,-500.0,0.00017673,2]
[393217913,1762333840059,-510.55136191,0.00017673,2]
[393217914,1762333840068,-500.0,0.00017673,2]
[393217915,1762333840078,-500.0,0.00017673,2]
[393217916,1762333840087,-500.0,0.00017673,2]
[393217917,1762333840096,-500.0,0.00017673,2]
[393217918,1762333840105,-500.0,0.00017673,2]
[393217920,1762333840114,-325.19950451,0.0001768,2]
[393217921,1762333840124,-297.2293235,0.00017689,2]
[393217922,1762333840133,-500.0,0.00017689,2]
[393217923,1762333840143,-500.0,0.00017689,2]
[393217924,1762333840152,-411.47552842,0.00017689,2]
[393217925,1762333840161,-500.0,0.00017689,2]
[393217926,1762333840170,-201.83251261,0.00017689,2]
[393217927,1762333840180,-1000.0,0.000177,2]
[393217928,1762333840189,-500.0,0.00017704,2]
[393217929,1762333840198,-893.58488772,0.00017718,2]
[393217930,1762333840207,-325.19950451,0.00017735,2]
[393217931,1762333840216,-500.0,0.00017739,2]
[393217932,1762333840225,-500.0,0.0001774,2]
[393217933,1762333840235,-500.0,0.0001774,2]
[393217934,1762333840244,-500.0,0.00017747,2]
[393217935,1762333840253,-500.0,0.00017747,2]
[393217936,1762333840262,-500.0,0.00017764,2]
[393217937,1762333840271,-546.79,0.00017778,2]
[393217938,1762333840280,-325.19950451,0.0001779,2]
[393217939,1762333840289,-1425.0,0.00017812,2]
[393217940,1762333840298,-1425.0,0.00017825,2]
[393217941,1762333840307,-1425.0,0.00017827,2]
[393217942,1762333840316,-180.47436555,0.00017839,2]
[393217943,1762333840325,-325.19950451,0.00017845,2]
[393217944,1762333840334,-200.0,0.00017856,2]
[393217945,1762333840343,-1425.0,0.00017875,2]
[393217946,1762333840352,-1425.0,0.00017882,2]
[393217947,1762333840362,-272.15604403,0.000179,2]
[393217948,1762333840372,-1000.0,0.000179,2]
[393217949,1762333840381,-325.19950451,0.000179,2]
[393217950,1762333840390,-251.56824121,0.000179,2]
[393217951,1762333840400,-327.847275,0.000179,2]
[393217952,1762333840409,-283.53136,0.0001791,2]
[393217953,1762333840419,-150.0,0.00017916,2]
[393217954,1762333840428,-1425.0,0.0001796,2]
[393217955,1762333840438,-1275.49060352,0.0001797,2]
[393217956,1762333840448,-1000.0,0.0001797,2]
[393217957,1762333840458,-184.0,0.00017973,2]
[393217958,1762333840467,-218.881,0.00017973,2]
[393217959,1762333840477,-500.0,0.00017982,2]
[393217960,1762333840487,-2367.9763919,0.00017986,2]
[393217961,1762333840496,-306.98412139,0.00017989,2]
[393217962,1762333840505,-3850.773,0.00017989,2]
[393217963,1762333840515,-945.52492229,0.0001799,2]
[393217964,1762333840525,-945.52492229,0.0001799,2]
[393217965,1762333840535,-57089.7916377,0.00017998,2]
[393217966,1762333840544,-1456.94118479,0.00017998,2]
[393217967,1762333840553,-500.0,0.00017999,2]
[393217968,1762333840563,-500.0,0.00017999,2]
[393217969,1762333840572,-175.39314765,0.00017999,2]
[393217970,1762333840581,-156.833,0.00017999,2]
[393217971,1762333840590,-666.0,0.00017999,2]
[393217972,1762333840599,-300.0,0.00017999,2]
[393217973,1762333840608,-332.57204277,0.00017999,2]
[393217974,1762333840617,-300.0,0.00017999,2]
[393217975,1762333840626,-432.36280577,0.00017999,2]
[393217976,1762333840637,-500.0,0.00017999,2]
[393217977,1762333840646,-266.17310046,0.00017999,2]
[393217978,1762333840655,-150.0,0.00017999,2]
[393217979,1762333840664,-150.0,0.00017999,2]
[393217980,1762333840674,-500.0,0.00017999,2]
[393217981,1762333840683,-500.0,0.00017999,2]
[393217982,1762333840692,-500.0,0.00017999,2]
[393217983,1762333840701,-300.0,0.00017999,2]
[393217984,1762333840711,-666.0,0.00017999,2]
[393217985,1762333840721,-151.92422519,0.00017999,2]
[393217986,1762333840730,-150.0,0.00017999,2]
[393217987,1762333840740,-150.0,0.00017999,2]
[393217988,1762333840750,-150.11692086,0.00017999,2]
[393217989,1762333840760,-150.0,0.00017999,2]
[393217990,1762333840770,-150.0,0.00017999,2]
[393217991,1762333840783,-500.0,0.00017999,2]
[393217992,1762333840793,-150.0,0.00017999,2]
[393217993,1762333840802,-150.0,0.00017999,2]
[393217994,1762333840811,-500.0,0.00017999,2]
[393217995,1762333840821,-150.0,0.00017999,2]
[393217996,1762333840830,-500.0,0.00017999,2]
[393217997,1762333840839,-4369.0,0.00018,2]
[393217998,1762333840849,-3586912.13525744,0.00018,2]
[393217999,1762333840863,-487.12276613,0.00018,2]
[393218000,1762333840874,-1591.86160017,0.00018,2]
[393218001,1762333840885,-511.0,0.00018,2]
[393218002,1762333840908,-30612.76748915,0.00018,2]
[393218010,1762333842835,-807.72460171,0.00018,2]
[393218011,1762333843102,-594.27179784,0.00018,2]
[393218012,1762333843114,-35865.58558601,0.00018,2]
[393218013,1762333843140,-0.09061786,0.00018,2]
[393218014,1762333843156,-348.02999996,0.00018,2]
[393218022,1762333845933,-1765.808058,0.00018,2]
[393218023,1762333845945,-3759.80276718,0.00018,2]
[393218030,1762333891440,-279.6991,0.00017404,2]
[393218031,1762333891466,-73.5087281,0.00017505,2]
[393218032,1762334097135,341.47,8.736e-05,2]
[393218033,1762334097208,227.19,9.178e-05,2]
[393218034,1762334097232,114.28,9.178e-05,2]
[393218035,1762334097402,341.47,9.62e-05,2]
[393218036,1762334097608,341.47,0.00010061,2]
[393218037,1762334098030,341.47,0.00010503,2]
[393218038,1762334098227,41.84844733,0.00010945,2]
[393218039,1762334098252,299.62155267,0.00010945,2]
[393218040,1762334098418,341.47,0.00011387,2]
[393218041,1762334098610,341.47,0.00011828,2]
[393218042,1762334098798,341.47,0.0001227,2]
[393218043,1762334098981,341.47,0.00012712,2]
[393218044,1762334099176,341.47,0.00013154,2]
[393218045,1762334099366,341.47,0.00013595,2]
[393218046,1762334099561,341.47,0.00014037,2]
[393218047,1762334099972,341.47,0.00014479,2]
[393218048,1762334100372,341.47,0.00014921,2]
[393218049,1762334100570,341.47,0.00015362,2]
[393218050,1762334154205,162.73,0.00025514,120]
[393218057,1762334372040,-193.32633915,0.00015803,2]
[393218058,1762334407620,150.0,0.00016561,120]
[393218061,1762334431398,-251.77247408,0.00015803,2]
[393218062,1762334433551,-48.22752592,0.00015803,2]
[393218063,1762334433574,-300.0,0.00015803,2]
[393218064,1762334433598,-92.99300138,0.00015803,2]
[393218066,1762334491972,-302.46887359,0.00015803,2]
[393218067,1762334521423,-285.56112641,0.00015803,2]
[393218068,1762334566375,-300.0,0.00015803,2]
[393218069,1762334569893,-194.99544923,0.00015803,2]
[393218090,1762334777290,-213.49986666,0.00015803,2]
[393218091,1762334778529,-165.17624386,0.00015803,2]
[393218092,1762334780457,-390.50040537,0.00015803,2]
[393218096,1762334816752,-421.82348411,0.00015803,2]
[393218097,1762334816784,-1200.0,0.00015803,2]
[393218098,1762334816813,-300.0,0.00015803,2]
[393218099,1762334816842,-195.0,0.00015804,2]
[393218100,1762334816873,-178.0,0.00015804,2]
[393218101,1762334816901,-500.0,0.00015804,2]
[393218102,1762334816932,-500.0,0.00015804,2]
[393218103,1762334816961,-500.0,0.00015804,2]
[393218104,1762334816989,-500.0,0.00015804,2]
[393218105,1762334817018,-500.0,0.00015804,2]
[393218106,1762334817038,-421.82348411,0.00015804,2]
[393218107,1762334817049,-78.17651589,0.00015804,2]
[393218108,1762334817059,-500.0,0.00015804,2]
[393218109,1762334817072,-341.47,0.00015804,2]
[393218110,1762334817081,-280.35348411,0.00016246,2]
[393218111,1762334817092,-61.11651589,0.00016246,2]
[393218112,1762334817103,-150.0,0.00016561,2]
[393218113,1762334817114,-88.88348411,0.00016688,2]
[393218114,1762334817129,-195.0,0.00016688,2]
[393218115,1762334817143,-57.58651589,0.00016688,2]
[393218116,1762334817153,-120.41348411,0.00016932,2]
[393218117,1762334817164,-386.58651589,0.00016932,2]
[393218118,1762334817174,-113.41348411,0.00017009,2]
[393218119,1762334817185,-49.31651589,0.00017009,2]
[393218120,1762334817196,-150.0,0.00017042,2]
[393218121,1762334817205,-300.68348411,0.00017128,2]
[393218122,1762334817216,-249.31651589,0.00017128,2]
[393218123,1762334817225,-250.68348411,0.00017128,2]
[393218124,1762334817252,-500.0,0.00017128,2]
[393218125,1762334817267,-500.0,0.00017128,2]
[393218126,1762334817278,-410.36303178,0.00017128,2]
[393218128,1762334822677,-1661.06651589,0.00017128,2]
[393218129,1762334822690,-6677.87696822,0.00017128,2]
[393218130,1762334822699,-300.0,0.00017128,2]
[393218131,1762334822708,-550.0,0.00017128,2]
[393218135,1762334869620,2944.9489204,0.00015,2]
[393218136,1762334869653,30000.0,0.00015,2]
[393218137,1762334869677,50000.0,0.00015,2]
[393218138,1762334869702,5000.0,0.00015,2]
[393218154,1762334927074,-190.72515153,0.00015,2]
[393218155,1762334928604,-372.37402165,0.00015,2]
[393218156,1762334931237,-362.36717236,0.00015,2]
[393218157,1762334932838,-305.33426883,0.00015,2]
[393218158,1762334934888,-185.39804047,0.00015,2]
[393218159,1762334936997,-176.5059819,0.00015,2]
[393218160,1762334938517,-251.01178691,0.00015,2]
[393218172,1762335001290,300.0,0.00014999,2]
[393218173,1762335001331,1200.0,0.00014999,2]
[393218174,1762335001598,300.0,0.00014999,2]
[393218175,1762335001898,150.0,0.00014999,2]
[393218188,1762335031974,-1480.499992,0.00015,2]
[393218189,1762335031987,-35949.0030408,0.00015,2]
[393218190,1762335032414,-32141.73812822,0.00015,2]
[393218191,1762335032426,-195.0,0.00015513,2]
[393218192,1762335032437,-174.47655003,0.00015861,2]
[393218193,1762335032448,-306.98412139,0.00016064,2]
[393218194,1762335032459,-255.0,0.00016124,2]
[393218195,1762335032471,-200.0,0.0001634,2]
[393218196,1762335032481,-420.0,0.00016416,2]
[393218197,1762335032492,-420.0,0.00016416,2]
[393218198,1762335032507,-1400.57,0.00016452,2]
[393218199,1762335032518,-27425.29839048,0.00016462,2]
[393218200,1762335032530,-31524.76847862,0.00016462,2]
[393218201,1762335032542,-500.0,0.00016473,2]
[393218202,1762335032553,-1680.0,0.00016499,2]
[393218203,1762335032565,-911.51578637,0.000165,2]
[393218204,1762335032578,-195.0,0.000165,2]
[393218205,1762335032589,-250.0,0.000165,2]
[393218206,1762335032599,-313.95616307,0.000165,2]
[393218207,1762335032610,-250.0,0.000165,2]
[393218208,1762335032620,-150.05312085,0.000165,2]
[393218209,1762335032633,-1000.0,0.00017021,2]
[393218210,1762335032644,-332.63874541,0.00017083,2]
[393218211,1762335032654,-314.05779005,0.00017083,2]
[393218212,1762335032664,-341.47,0.00017129,2]
[393218213,1762335032675,-3577.32,0.00017129,2]
[393218214,1762335032686,-150.99,0.00017129,2]
[393218215,1762335032697,-9999.99,0.00017129,2]
[393218216,1762335032707,-55175.83,0.00017129,2]
[393218217,1762335032721,-9999.99,0.00017129,2]
[393218218,1762335032733,-8300.35,0.00017129,2]
[393218219,1762335032743,-150.99,0.00017129,2]
[393218220,1762335032753,-499.99,0.00017129,2]
[393218221,1762335032764,-1451.97,0.00017129,2]
[393218222,1762335032775,-999.99,0.00017129,2]
[393218223,1762335032784,-642.31,0.00017129,2]
[393218224,1762335032795,-250.0,0.00017145,2]
[393218225,1762335032805,-500.0,0.00017173,2]
[393218226,1762335032815,-500.0,0.00017173,2]
[393218227,1762335032825,-500.0,0.00017173,2]
[393218228,1762335032835,-500.0,0.00017173,2]
[393218229,1762335032845,-500.0,0.00017173,2]
[393218230,1762335032854,-500.0,0.00017173,2]
[393218231,1762335032864,-500.0,0.00017173,2]
[393218232,1762335032874,-500.0,0.00017173,2]
[393218233,1762335032883,-500.0,0.00017173,2]
[393218234,1762335032893,-500.79767075,0.00017173,2]
[393218235,1762335032903,-500.0,0.00017173,2]
[393218236,1762335032913,-500.0,0.00017173,2]
[393218237,1762335032923,-500.0,0.00017173,2]
[393218238,1762335032932,-500.0,0.00017173,2]
[393218239,1762335032942,-500.0,0.00017173,2]
[393218240,1762335032951,-510.55136191,0.00017173,2]
[393218241,1762335032961,-433.0,0.00017339,2]
[393218242,1762335032973,-300.0,0.00017383,2]
[393218243,1762335032983,-2500.0,0.00017383,2]
[393218244,1762335032993,-195.0,0.00017383,2]
[393218245,1762335033002,-2500.0,0.00017383,2]
[393218246,1762335033012,-195.0,0.00017383,2]
[393218247,1762335033022,-302.60422307,0.00017383,2]
[393218248,1762335033033,-300.0,0.00017383,2]
[393218249,1762335033043,-277.35679052,0.00017393,2]
[393218250,1762335033053,-692.99300138,0.00017402,2]
[393218251,1762335033063,-5968.9818,0.00017405,2]
[393218252,1762335033073,-234.2882,0.00017405,2]
[393218253,1762335033083,-1000.0,0.00017405,2]
[393218254,1762335033093,-3719.76354239,0.00017405,2]
[393218255,1762335033107,-522.04790989,0.00017405,2]
[393218256,1762335033121,-864.08449454,0.00017405,2]
[393218257,1762335033134,-7218.06605318,0.00017405,2]
[393218258,1762335033144,-2500.0,0.00017405,2]
[393218259,1762335033155,-407.46870677,0.00017405,2]
[393218260,1762335033164,-590.01678008,0.00017405,2]
[393218261,1762335033175,-590.01678,0.0001746,2]
[393218262,1762335033185,-206.90687007,0.00017494,2]
[393218263,1762335033196,-500.0,0.00017494,2]
[393218264,1762335033205,-151.0,0.00017494,2]
[393218265,1762335033215,-151.0,0.00017494,2]
[393218266,1762335033225,-151.0,0.00017494,2]
[393218267,1762335033235,-151.0,0.00017494,2]
[393218268,1762335033246,-151.0,0.00017494,2]
[393218269,1762335033256,-151.0,0.00017494,2]
[393218270,1762335033266,-151.0,0.00017494,2]
[393218271,1762335033275,-151.0,0.00017494,2]
[393218272,1762335033285,-271.9568903,0.00017494,2]
[393218273,1762335033295,-514.84070869,0.00017494,2]
[393218274,1762335033305,-322.6107,0.00017494,2]
[393218275,1762335033314,-500.0,0.00017494,2]
[393218276,1762335033324,-500.0,0.00017494,2]
[393218277,1762335033337,-500.0,0.00017494,2]
[393218278,1762335033347,-500.0,0.00017494,2]
[393218279,1762335033357,-500.0,0.00017494,2]
[393218280,1762335033366,-500.0,0.00017494,2]
[393218281,1762335033377,-500.0,0.00017494,2]
[393218282,1762335033387,-500.0,0.00017494,2]
[393218283,1762335033397,-500.0,0.00017494,2]
[393218284,1762335033407,-500.0,0.00017494,2]
[393218285,1762335033417,-500.0,0.00017494,2]
[393218286,1762335033426,-215.74106436,0.00017494,2]
[393218287,1762335033436,-500.0,0.00017494,2]
[393218288,1762335033445,-500.0,0.00017494,2]
[393218289,1762335033455,-250.0,0.00017494,2]
[393218290,1762335033467,-500.0,0.00017494,2]
[393218291,1762335033477,-500.0,0.00017494,2]
[393218292,1762335033487,-250.0,0.00017494,2]
[393218293,1762335033497,-250.0,0.00017494,2]
[393218294,1762335033507,-250.0,0.00017494,2]
[393218295,1762335033518,-250.0,0.00017494,2]
[393218296,1762335033528,-250.0,0.00017494,2]